[Event "36th Zalakaros Festival 2017"]
[Site "Zalakaros"]
[Date "2017.05.20"]
[Round "3"]
[White "Tate, Alan"]
[Black "Varga, Klara"]
[Result "1/2-1/2"]
[ECO "A07"]
[WhiteElo "2320"]
[BlackElo "2240"]
[Annotator "NA"]
[PlyCount "108"]
[EventDate "2017.??.??"]
[EventType "swiss"]
[EventCountry "HUN"]
[SourceTitle "playchess.com"]
[Source "ChessBase"]
[SourceQuality "1"]
[TimeControl "40/5400+30:1800+30"]

1. Nf3 {[%emt 0:00:05]} Nf6 {[%emt 0:03:27]} 2. g3 {[%emt 0:00:09]} d5 {[%emt 0:00:07]} 3. Bg2 {[%emt 0:00:19]} c6 {[%emt 0:00:09]} 4. O-O {[%emt 0:01:01]} Bg4 {[%emt 0:00:10]} 5. c4 {[%emt 0:04:03]} Nbd7 {[%emt 0:00:08]} 6. d4 {[%emt 0:01:13]} e6 {[%emt 0:00:43]} 7. h3 {[%emt 0:00:48]} Bh5 {[%emt 0:01:30]} 8. cxd5 {[%emt 0:00:47]} cxd5 {[%emt 0:00:15]} 9. Qb3 {[%emt 0:10:31]} Qb6 {[%emt 0:00:19]} 10. Bf4 {[%emt 0:09:38]} Be7 {[%emt 0:02:43]} 11. g4 {[%emt 0:05:25]} Bg6 {[%emt 0:00:06]} 12. Rc1 {[%emt 0:01:16]} Ne4 {[%emt 0:02:44]} 13. Na3 {[%emt 0:17:22]} Bd6 {[%emt 0:01:32]} 14. Bxd6 {[%emt 0:07:39]} Nxd6 {[%emt 0:00:54]} 15. Ne5 {[%emt 0:01:43]} Qxb3 {[%emt 0:02:06]} 16. axb3 {[%emt 0:00:03]} f6 {[%emt 0:00:09]} 17. Nxg6 {[%emt 0:01:15]} hxg6 {[%emt 0:03:09]} 18. Nc2 {[%emt 0:02:43]} Ke7 {[%emt 0:10:00]} 19. Nb4 {[%emt 0:00:03]} a6 {[%emt 0:00:24]} 20. Rc7 {[%emt 0:09:55]} Rhc8 {[%emt 0:01:32]} 21. Rac1 {[%emt 0:00:21]} Kd8 {[%emt 0:10:32]} 22. Rxc8+ {[%emt 0:00:46]} Rxc8 {[%emt 0:00:02]} 23. Rxc8+ {[%emt 0:03:56]} Kxc8 {[%emt 0:00:03]} 24. Nd3 {[%emt 0:02:44]} g5 {[%emt 0:00:35]} 25. e3 {[%emt 0:08:36]} a5 {[%emt 0:05:53]} 26. Kf1 {[%emt 0:01:02]} b6 {[%emt 0:01:35]} 27. Ke2 {[%emt 0:00:34]} Nb8 {[%emt 0:01:05]} 28. f4 {[%emt 0:03:30]} gxf4 {[%emt 0:00:37]} 29. Nxf4 {[%emt 0:01:07]} Kd7 {[%emt 0:00:10]} 30. Nh5 {[%emt 0:00:11]} Ne8 {[%emt 0:00:05]} 31. e4 {[%emt 0:02:34]} Nc6 {[%emt 0:01:54]} 32. Ke3 {[%emt 0:00:46]} Nb4 {[%emt 0:04:32]} 33. Bf1 {[%emt 0:00:30]} Kc6 {[%emt 0:16:07]} 34. Nf4 {[%emt 0:00:13]} Kd6 {[%emt 0:00:26]} 35. Nh5 {[%emt 0:02:55]} g6 {[%emt 0:00:26]} 36. Ng3 {[%emt 0:00:47]} e5 {[%emt 0:00:32]} 37. dxe5+ {[%emt 0:00:46]} Kxe5 {[%emt 0:00:14]} 38. exd5 {[%emt 0:00:31]} Nxd5+ {[%emt 0:00:02]} 39. Kf3 {[%emt 0:00:28]} Nd6 {[%emt 0:00:52]} 40. h4 {[%emt 0:00:00]} Nf4 {[%emt 0:04:25]} 41. h5 {[%emt 0:04:57]} f5 {[%emt 0:00:22]} 42. hxg6 {[%emt 0:04:37]} Nxg6 {[%emt 0:04:18]} 43. Nxf5 {[%emt 0:02:31]} Nxf5 {[%emt 0:00:07]} 44. gxf5 {[%emt 0:00:05]} Nh4+ {[%emt 0:00:06]} 45. Ke3 {[%emt 0:00:25]} Nxf5+ {[%emt 0:00:02]} 46. Kd3 {[%emt 0:00:28]} Kd5 {[%emt 0:00:10]} 47. Kc3 {[%emt 0:00:47]} Kc5 {[%emt 0:00:13]} 48. Bc4 {[%emt 0:00:34]} Nd6 {[%emt 0:01:15]} 49. Bg8 {[%emt 0:01:45]} Nb5+ {[%emt 0:00:58]} 50. Kd3 {[%emt 0:00:05]} Kb4 {[%emt 0:01:18]} 51. Bf7 {[%emt 0:01:13]} Nd6 {[%emt 0:05:24]} 52. Bg8 {[%emt 0:00:35]} Nb7 {[%emt 0:00:06]} 53. Bd5 {[%emt 0:00:21]} Nc5+ {[%emt 0:00:06]} 54. Kc2 {[%emt 0:00:03]} Nd7 {[%emt 0:07:14]} 1/2-1/2

[Event "36th Zalakaros Festival 2017"]
[Site "Zalakaros"]
[Date "2017.05.20"]
[Round "3"]
[White "Rajdeep Sarkar"]
[Black "Szente Varga, Fruzsina"]
[Result "1-0"]
[ECO "A49"]
[WhiteElo "2312"]
[BlackElo "2190"]
[Annotator "NA"]
[PlyCount "93"]
[EventDate "2017.??.??"]
[EventType "swiss"]
[EventCountry "HUN"]
[SourceTitle "playchess.com"]
[Source "ChessBase"]
[SourceQuality "1"]
[TimeControl "40/5400+30:1800+30"]

1. d4 {[%emt 0:00:06]} Nf6 {[%emt 0:00:34]} 2. Nf3 {[%emt 0:00:06]} g6 {[%emt 0:00:12]} 3. g3 {[%emt 0:00:05]} c6 {[%emt 0:01:14]} 4. Bg2 {[%emt 0:00:12]} Bg7 {[%emt 0:00:06]} 5. O-O {[%emt 0:00:06]} O-O {[%emt 0:00:11]} 6. c4 {[%emt 0:00:04]} d5 {[%emt 0:00:06]} 7. Nbd2 {[%emt 0:00:05]} Be6 {[%emt 0:14:40]} 8. b3 {[%emt 0:01:27]} a5 {[%emt 0:00:05]} 9. e3 {[%emt 0:01:37]} a4 {[%emt 0:01:30]} 10. Ba3 {[%emt 0:00:45]} Re8 {[%emt 0:01:44]} 11. Qe2 {[%emt 0:01:21]} axb3 {[%emt 0:13:27]} 12. axb3 {[%emt 0:00:11]} Na6 {[%emt 0:00:16]} 13. Rfc1 {[%emt 0:03:34]} Nc7 {[%emt 0:15:45]} 14. h3 {[%emt 0:05:57]} h6 {[%emt 0:01:50]} 15. Ne5 {[%emt 0:03:51]} Nd7 {[%emt 0:01:30]} 16. Nd3 {[%emt 0:01:58]} f6 {[%emt 0:06:47]} 17. Bb2 {[%emt 0:08:50]} Rxa1 {[%emt 0:02:53]} 18. Rxa1 {[%emt 0:00:25]} Bf7 {[%emt 0:00:08]} 19. e4 {[%emt 0:01:09]} e5 {[%emt 0:08:12]} 20. cxd5 {[%emt 0:02:42]} cxd5 {[%emt 0:00:12]} 21. dxe5 {[%emt 0:00:14]} Nxe5 {[%emt 0:04:18]} 22. Nxe5 {[%emt 0:00:28]} fxe5 {[%emt 0:00:04]} 23. exd5 {[%emt 0:00:11]} Bxd5 {[%emt 0:02:24]} 24. Ra5 {[%emt 0:03:41]} Bxg2 {[%emt 0:06:05]} 25. Kxg2 {[%emt 0:00:05]} Ne6 {[%emt 0:00:37]} 26. Rb5 {[%emt 0:04:35]} Kh7 {[%emt 0:04:15]} 27. Qe3 {[%emt 0:06:28]} Qd7 {[%emt 0:01:24]} 28. Ra5 {[%emt 0:02:23]} Nd4 {[%emt 0:00:36]} 29. Qe4 {[%emt 0:00:54]} Rf8 {[%emt 0:01:01]} 30. Rd5 {[%emt 0:04:53]} Qf7 {[%emt 0:00:34]} 31. f3 {[%emt 0:02:12]} Rc8 {[%emt 0:01:45]} 32. Nc4 {[%emt 0:00:55]} b5 {[%emt 0:07:00]} 33. Nxe5 {[%emt 0:03:18]} Rc2+ {[%emt 0:00:32]} 34. Qxc2 {[%emt 0:01:42]} Qxd5 {[%emt 0:00:04]} 35. Qxg6+ {[%emt 0:02:24]} Kg8 {[%emt 0:00:01]} 36. Bxd4 {[%emt 0:04:49]} Qxd4 {[%emt 0:00:04]} 37. Nd3 {[%emt 0:00:34]} Qe3 {[%emt 0:04:06]} 38. h4 {[%emt 0:06:40]} Qe2+ {[%emt 0:00:26]} 39. Nf2 {[%emt 0:00:08]} Qe3 {[%emt 0:01:57]} 40. Qd3 {[%emt 0:00:00]} Qe8 {[%emt 0:00:27]} 41. Qd5+ {[%emt 0:02:11]} Kh8 {[%emt 0:01:14]} 42. Ne4 {[%emt 0:01:51]} b4 {[%emt 0:00:44]} 43. Qc5 {[%emt 0:04:13]} Qb8 {[%emt 0:00:05]} 44. Nd6 {[%emt 0:01:02]} Qf8 {[%emt 0:04:36]} 45. Qc8 {[%emt 0:01:08]} Qxc8 {[%emt 0:02:45]} 46. Nxc8 {[%emt 0:00:06]} Bf8 {[%emt 0:00:02]} 47. Nb6 {[%emt 0:00:11]} 1-0

[Event "36th Zalakaros Festival 2017"]
[Site "Zalakaros"]
[Date "2017.05.20"]
[Round "3"]
[White "Krykun, Yuriy"]
[Black "Almasi, Istvan"]
[Result "0-1"]
[ECO "B40"]
[WhiteElo "2308"]
[BlackElo "2398"]
[Annotator "NA"]
[PlyCount "56"]
[EventDate "2017.??.??"]
[EventType "swiss"]
[EventCountry "HUN"]
[SourceTitle "playchess.com"]
[Source "ChessBase"]
[SourceQuality "1"]
[TimeControl "40/5400+30:1800+30"]

1. e4 {[%emt 0:00:01]} c5 {[%emt 0:01:23]} 2. Nf3 {[%emt 0:00:05]} e6 {[%emt 0:00:49]} 3. g3 {[%emt 0:00:09]} Nc6 {[%emt 0:02:56]} 4. Bg2 {[%emt 0:00:12]} Nf6 {[%emt 0:00:28]} 5. Qe2 {[%emt 0:00:08]} e5 {[%emt 0:00:40]} 6. O-O {[%emt 0:00:36]} Be7 {[%emt 0:00:08]} 7. c3 {[%emt 0:00:21]} O-O {[%emt 0:00:23]} 8. Na3 {[%emt 0:00:29]} d5 {[%emt 0:01:47]} 9. exd5 {[%emt 0:02:16]} Qxd5 {[%emt 0:00:16]} 10. d3 {[%emt 0:01:39]} Bf5 {[%emt 0:06:35]} 11. Rd1 {[%emt 0:01:40]} Rad8 {[%emt 0:01:51]} 12. Qe1 {[%emt 0:12:21]} Bxd3 {[%emt 0:22:07]} 13. Nxe5 {[%emt 0:16:47]} Qxe5 {[%emt 0:06:04]} 14. Bxc6 {[%emt 0:00:19]} Qh5 {[%emt 0:02:14]} 15. Bg2 {[%emt 0:08:19]} c4 {[%emt 0:01:08]} 16. Be3 {[%emt 0:08:42]} Rfe8 {[%emt 0:03:49]} 17. Nxc4 {[%emt 0:11:50]} Bxc4 {[%emt 0:00:46]} 18. Bxa7 {[%emt 0:00:06]} Bd6 {[%emt 0:04:46]} 19. Qd2 {[%emt 0:01:36]} Bxg3 {[%emt 0:13:52]} 20. fxg3 {[%emt 0:00:21]} Rxd2 {[%emt 0:00:05]} 21. Rxd2 {[%emt 0:00:02]} Bd5 {[%emt 0:04:02]} 22. Bxd5 {[%emt 0:00:30]} Nxd5 {[%emt 0:00:02]} 23. Rad1 {[%emt 0:00:09]} Re2 {[%emt 0:02:08]} 24. Bf2 {[%emt 0:00:16]} Rxd2 {[%emt 0:04:46]} 25. Rxd2 {[%emt 0:01:29]} Qf5 {[%emt 0:00:57]} 26. c4 {[%emt 0:00:43]} Qb1+ {[%emt 0:00:20]} 27. Kg2 {[%emt 0:00:27]} Qe4+ {[%emt 0:00:01]} 28. Kg1 {[%emt 0:00:41]} Qxc4 {[%emt 0:00:02]} 0-1

[Event "36th Zalakaros Festival 2017"]
[Site "Zalakaros"]
[Date "2017.05.20"]
[Round "3"]
[White "Szabo, Marton Mihaly"]
[Black "Hradeczky, Tamas"]
[Result "1/2-1/2"]
[ECO "B51"]
[WhiteElo "2298"]
[BlackElo "2146"]
[Annotator "NA"]
[PlyCount "46"]
[EventDate "2017.??.??"]
[EventType "swiss"]
[EventCountry "HUN"]
[SourceTitle "playchess.com"]
[Source "ChessBase"]
[SourceQuality "1"]
[TimeControl "40/5400+30:1800+30"]

1. e4 {[%emt 0:00:03]} c5 {[%emt 0:00:40]} 2. Nf3 {[%emt 0:00:17]} d6 {[%emt 0:00:08]} 3. Bb5+ {[%emt 0:00:14]} Nd7 {[%emt 0:00:18]} 4. O-O {[%emt 0:00:17]} a6 {[%emt 0:00:47]} 5. Bd3 {[%emt 0:00:09]} Ngf6 {[%emt 0:01:44]} 6. Re1 {[%emt 0:00:25]} e6 {[%emt 0:01:20]} 7. c3 {[%emt 0:00:33]} Qc7 {[%emt 0:04:09]} 8. a4 {[%emt 0:02:49]} Be7 {[%emt 0:01:37]} 9. Bc2 {[%emt 0:01:48]} Ne5 {[%emt 0:03:27]} 10. Nxe5 {[%emt 0:04:09]} dxe5 {[%emt 0:00:17]} 11. d3 {[%emt 0:03:48]} O-O {[%emt 0:04:55]} 12. Nd2 {[%emt 0:04:55]} Bd7 {[%emt 0:02:46]} 13. a5 {[%emt 0:01:10]} Rad8 {[%emt 0:01:49]} 14. Qf3 {[%emt 0:05:59]} Kh8 {[%emt 0:05:32]} 15. Qh3 {[%emt 0:05:00]} Bb5 {[%emt 0:04:23]} 16. c4 {[%emt 0:05:42]} Be8 {[%emt 0:06:10]} 17. f4 {[%emt 0:12:07]} exf4 {[%emt 0:08:06]} 18. e5 {[%emt 0:01:22]} Ng8 {[%emt 0:02:46]} 19. Nf3 {[%emt 0:02:47]} g5 {[%emt 0:13:43]} 20. g3 {[%emt 0:14:53]} f5 {[%emt 0:06:06]} 21. exf6 {[%emt 0:03:45]} Bxf6 {[%emt 0:00:56]} 22. gxf4 {[%emt 0:03:53]} gxf4 {[%emt 0:01:10]} 23. Bd2 {[%emt 0:05:52]} Qg7+ {[%emt 0:02:47]} 1/2-1/2

[Event "36th Zalakaros Festival 2017"]
[Site "Zalakaros"]
[Date "2017.05.20"]
[Round "3"]
[White "Krstulovic, Alex"]
[Black "Lazarne Vajda, Szidonia"]
[Result "1/2-1/2"]
[ECO "D10"]
[WhiteElo "2280"]
[BlackElo "2357"]
[Annotator "NA"]
[PlyCount "46"]
[EventDate "2017.??.??"]
[EventType "swiss"]
[EventCountry "HUN"]
[SourceTitle "playchess.com"]
[Source "ChessBase"]
[SourceQuality "1"]
[TimeControl "40/5400+30:1800+30"]

1. d4 {[%emt 0:00:03]} d5 {[%emt 0:01:50]} 2. c4 {[%emt 0:00:07]} c6 {[%emt 0:00:07]} 3. cxd5 {[%emt 0:01:06]} cxd5 {[%emt 0:01:00]} 4. Bf4 {[%emt 0:00:09]} Nc6 {[%emt 0:02:02]} 5. e3 {[%emt 0:00:15]} Nf6 {[%emt 0:01:11]} 6. Nc3 {[%emt 0:00:28]} Bf5 {[%emt 0:00:50]} 7. Nf3 {[%emt 0:01:46]} e6 {[%emt 0:01:03]} 8. Bb5 {[%emt 0:01:44]} Nd7 {[%emt 0:02:03]} 9. Ne5 {[%emt 0:08:26]} Ndxe5 {[%emt 0:14:09]} 10. Bxe5 {[%emt 0:00:11]} Rc8 {[%emt 0:00:24]} 11. Bg3 {[%emt 0:04:31]} Bb4 {[%emt 0:05:49]} 12. Rc1 {[%emt 0:03:36]} Qa5 {[%emt 0:05:22]} 13. Qa4 {[%emt 0:06:41]} a6 {[%emt 0:03:34]} 14. Qxa5 {[%emt 0:00:19]} Bxa5 {[%emt 0:00:04]} 15. Be2 {[%emt 0:04:47]} Kd7 {[%emt 0:15:02]} 16. O-O {[%emt 0:06:36]} Bxc3 {[%emt 0:03:18]} 17. Rxc3 {[%emt 0:04:36]} Na5 {[%emt 0:00:44]} 18. Rfc1 {[%emt 0:01:41]} Rxc3 {[%emt 0:00:05]} 19. Rxc3 {[%emt 0:00:04]} Rc8 20. Rxc8 {[%emt 0:01:40]} Kxc8 {[%emt 0:00:09]} 21. f3 {[%emt 0:21:59]} Bb1 {[%emt 0:02:41]} 22. a3 {[%emt 0:00:41]} Kd7 {[%emt 0:03:22]} 23. Be1 {[%emt 0:01:00]} Nc4 {[%emt 0:00:23]} 1/2-1/2

[Event "36th Zalakaros Festival 2017"]
[Site "Zalakaros"]
[Date "2017.05.20"]
[Round "3"]
[White "Rigo, Janos"]
[Black "Meszaros, Tamas"]
[Result "0-1"]
[ECO "C63"]
[WhiteElo "2236"]
[BlackElo "2401"]
[Annotator "NA"]
[PlyCount "66"]
[EventDate "2017.??.??"]
[EventType "swiss"]
[EventCountry "HUN"]
[SourceTitle "playchess.com"]
[Source "ChessBase"]
[SourceQuality "1"]
[TimeControl "40/5400+30:1800+30"]

1. e4 {[%emt 0:00:08]} e5 {[%emt 0:00:39]} 2. Nf3 {[%emt 0:00:05]} Nc6 {[%emt 0:00:04]} 3. Bb5 {[%emt 0:00:07]} f5 {[%emt 0:00:06]} 4. d3 {[%emt 0:00:36]} fxe4 {[%emt 0:00:06]} 5. dxe4 {[%emt 0:00:07]} Nf6 {[%emt 0:00:05]} 6. O-O {[%emt 0:01:40]} d6 {[%emt 0:00:04]} 7. Nc3 {[%emt 0:00:21]} Be7 {[%emt 0:00:07]} 8. h3 {[%emt 0:06:11]} O-O {[%emt 0:01:43]} 9. a4 {[%emt 0:00:42]} Qe8 {[%emt 0:12:05]} 10. Nd5 {[%emt 0:03:23]} Bd8 {[%emt 0:29:56]} 11. Ra3 {[%emt 0:04:30]} Nxe4 {[%emt 0:11:22]} 12. Nxc7 {[%emt 0:00:23]} Bxc7 {[%emt 0:03:05]} 13. Qd5+ {[%emt 0:03:14]} Qf7 {[%emt 0:07:53]} 14. Qxe4 {[%emt 0:00:09]} d5 {[%emt 0:00:08]} 15. Qh4 {[%emt 0:00:12]} e4 {[%emt 0:03:59]} 16. Ng5 {[%emt 0:06:23]} Qg6 {[%emt 0:00:08]} 17. c4 {[%emt 0:03:33]} h6 {[%emt 0:03:00]} 18. cxd5 {[%emt 0:02:10]} hxg5 {[%emt 0:00:06]} 19. Bxg5 {[%emt 0:00:02]} Nd4 {[%emt 0:00:35]} 20. Bc4 {[%emt 0:05:23]} Bd6 {[%emt 0:06:34]} 21. f4 {[%emt 0:05:50]} Bxa3 {[%emt 0:04:32]} 22. bxa3 {[%emt 0:00:31]} Nf5 {[%emt 0:01:28]} 23. Qe1 {[%emt 0:01:00]} Qb6+ {[%emt 0:00:43]} 24. Kh1 {[%emt 0:00:41]} Qe3 {[%emt 0:03:08]} 25. d6+ {[%emt 0:01:03]} Kh7 {[%emt 0:01:12]} 26. Qd1 {[%emt 0:03:15]} Ng3+ {[%emt 0:00:45]} 27. Kh2 {[%emt 0:00:07]} Nxf1+ {[%emt 0:00:04]} 28. Bxf1 {[%emt 0:00:05]} Be6 {[%emt 0:01:48]} 29. d7 {[%emt 0:00:26]} Qb6 {[%emt 0:02:17]} 30. f5 {[%emt 0:01:31]} Rxf5 {[%emt 0:04:10]} 31. d8=Q {[%emt 0:01:41]} Rxd8 {[%emt 0:00:01]} 32. Bxd8 {[%emt 0:00:22]} Qf2 {[%emt 0:00:37]} 33. Qd6 {[%emt 0:01:24]} Bd5 {[%emt 0:01:44]} 0-1

[Event "36th Zalakaros Festival 2017"]
[Site "Zalakaros"]
[Date "2017.05.20"]
[Round "3"]
[White "Czupor, Attila"]
[Black "Paszewski, Mateusz"]
[Result "0-1"]
[ECO "B38"]
[WhiteElo "2230"]
[BlackElo "2327"]
[Annotator "NA"]
[PlyCount "98"]
[EventDate "2017.??.??"]
[EventType "swiss"]
[EventCountry "HUN"]
[SourceTitle "playchess.com"]
[Source "ChessBase"]
[SourceQuality "1"]
[TimeControl "40/5400+30:1800+30"]

1. e4 {[%emt 0:00:10]} c5 {[%emt 0:00:32]} 2. Nf3 {[%emt 0:00:15]} g6 {[%emt 0:00:02]} 3. d4 {[%emt 0:00:13]} cxd4 {[%emt 0:00:02]} 4. Nxd4 {[%emt 0:00:09]} Bg7 {[%emt 0:00:02]} 5. c4 {[%emt 0:01:06]} Nc6 {[%emt 0:00:02]} 6. Be3 {[%emt 0:00:32]} Nf6 {[%emt 0:00:11]} 7. Nc3 {[%emt 0:00:11]} d6 {[%emt 0:00:04]} 8. Be2 {[%emt 0:02:24]} O-O {[%emt 0:00:04]} 9. O-O {[%emt 0:00:30]} Bd7 {[%emt 0:00:03]} 10. Rc1 {[%emt 0:00:33]} Nxd4 {[%emt 0:02:06]} 11. Bxd4 {[%emt 0:00:32]} Bc6 {[%emt 0:00:13]} 12. f3 {[%emt 0:01:11]} a5 {[%emt 0:00:07]} 13. b3 {[%emt 0:01:30]} Nd7 {[%emt 0:02:21]} 14. Be3 {[%emt 0:00:55]} Nc5 {[%emt 0:00:17]} 15. Qc2 {[%emt 0:01:25]} Qb6 {[%emt 0:12:57]} 16. Rb1 {[%emt 0:04:17]} Rfc8 {[%emt 0:15:44]} 17. a3 {[%emt 0:02:44]} Qd8 {[%emt 0:01:22]} 18. b4 {[%emt 0:04:27]} axb4 {[%emt 0:00:52]} 19. axb4 {[%emt 0:00:12]} Ra3 {[%emt 0:06:50]} 20. Bd2 {[%emt 0:19:23]} Na4 {[%emt 0:10:35]} 21. Nd1 {[%emt 0:22:49]} Nb6 {[%emt 0:06:19]} 22. b5 {[%emt 0:13:31]} Bd4+ {[%emt 0:06:58]} 23. Kh1 {[%emt 0:02:43]} Bd7 {[%emt 0:00:01]} 24. Bb4 {[%emt 0:01:18]} Ra7 {[%emt 0:13:32]} 25. Bc3 {[%emt 0:03:31]} Bxc3 {[%emt 0:00:55]} 26. Qxc3 {[%emt 0:00:22]} Be6 {[%emt 0:01:21]} 27. Ne3 {[%emt 0:00:59]} Qc7 {[%emt 0:00:19]} 28. f4 {[%emt 0:05:35]} f6 {[%emt 0:03:34]} 29. Ra1 {[%emt 0:06:17]} Rxa1 {[%emt 0:02:07]} 30. Rxa1 {[%emt 0:00:10]} Qc5 {[%emt 0:00:02]} 31. g4 {[%emt 0:02:40]} Nxc4 {[%emt 0:07:51]} 32. f5 {[%emt 0:02:35]} Bf7 {[%emt 0:01:48]} 33. Bxc4 {[%emt 0:00:33]} Bxc4 {[%emt 0:00:01]} 34. Nxc4 {[%emt 0:00:36]} Qxc4 {[%emt 0:00:01]} 35. Qxc4+ {[%emt 0:00:06]} Rxc4 {[%emt 0:00:02]} 36. Ra7 {[%emt 0:00:29]} Rxe4 {[%emt 0:01:20]} 37. Rxb7 {[%emt 0:00:35]} Kf7 {[%emt 0:00:05]} 38. fxg6+ {[%emt 0:00:55]} hxg6 {[%emt 0:00:01]} 39. h3 {[%emt 0:00:12]} Re2 {[%emt 0:00:10]} 40. Rb8 {[%emt 0:00:00]} g5 {[%emt 0:04:55]} 41. b6 {[%emt 0:01:13]} Ke6 {[%emt 0:04:36]} 42. b7 {[%emt 0:01:59]} Rb2 {[%emt 0:00:53]} 43. Kg1 {[%emt 0:00:10]} d5 {[%emt 0:01:05]} 44. Kf1 {[%emt 0:00:12]} Ke5 {[%emt 0:00:03]} 45. Ke1 {[%emt 0:00:20]} d4 {[%emt 0:00:38]} 46. Kd1 {[%emt 0:00:13]} Ke4 {[%emt 0:00:17]} 47. Kc1 {[%emt 0:00:09]} Rb6 {[%emt 0:00:08]} 48. Kd2 {[%emt 0:00:43]} Rb5 {[%emt 0:01:02]} 49. Kc2 {[%emt 0:01:15]} Ke3 {[%emt 0:00:20]} 0-1

[Event "36th Zalakaros Festival 2017"]
[Site "Zalakaros"]
[Date "2017.05.20"]
[Round "3"]
[White "Szukics, Adam"]
[Black "Borsos, Bogdan"]
[Result "1/2-1/2"]
[ECO "C65"]
[WhiteElo "2229"]
[BlackElo "2321"]
[Annotator "NA"]
[PlyCount "97"]
[EventDate "2017.??.??"]
[EventType "swiss"]
[EventCountry "HUN"]
[SourceTitle "playchess.com"]
[Source "ChessBase"]
[SourceQuality "1"]
[TimeControl "40/5400+30:1800+30"]

1. e4 {[%emt 0:00:09]} e5 {[%emt 0:02:46]} 2. Nf3 {[%emt 0:00:10]} Nc6 {[%emt 0:00:05]} 3. Bb5 {[%emt 0:00:08]} Nf6 {[%emt 0:00:05]} 4. d3 {[%emt 0:00:17]} Bc5 {[%emt 0:00:05]} 5. c3 {[%emt 0:00:07]} O-O {[%emt 0:00:20]} 6. O-O {[%emt 0:00:23]} d6 {[%emt 0:01:20]} 7. Nbd2 {[%emt 0:00:17]} Bb6 {[%emt 0:02:13]} 8. Nc4 {[%emt 0:00:45]} Ne7 {[%emt 0:00:32]} 9. Bg5 {[%emt 0:08:02]} c6 {[%emt 0:00:12]} 10. Ba4 {[%emt 0:02:11]} Bc7 {[%emt 0:01:12]} 11. Bxf6 {[%emt 0:01:44]} gxf6 {[%emt 0:00:03]} 12. Ne3 {[%emt 0:03:53]} Kh8 {[%emt 0:00:11]} 13. Nh4 {[%emt 0:03:52]} Rg8 {[%emt 0:02:01]} 14. Bb3 {[%emt 0:04:17]} Be6 {[%emt 0:10:42]} 15. Qf3 {[%emt 0:05:29]} Ng6 {[%emt 0:00:29]} 16. Nhf5 {[%emt 0:03:00]} Qf8 {[%emt 0:10:49]} 17. Rad1 {[%emt 0:16:21]} Ne7 {[%emt 0:14:00]} 18. Nxe7 {[%emt 0:08:01]} Qxe7 {[%emt 0:00:12]} 19. Kh1 {[%emt 0:01:20]} Rg5 {[%emt 0:01:41]} 20. h4 {[%emt 0:06:09]} Rg6 {[%emt 0:00:11]} 21. Nf5 {[%emt 0:02:01]} Qd7 {[%emt 0:02:35]} 22. g4 {[%emt 0:04:48]} Rag8 {[%emt 0:10:26]} 23. Rg1 {[%emt 0:01:43]} d5 {[%emt 0:01:42]} 24. Kh2 {[%emt 0:11:26]} Rd8 {[%emt 0:06:56]} 25. Kh3 {[%emt 0:06:20]} a5 {[%emt 0:04:13]} 26. Bc2 {[%emt 0:02:02]} Rdg8 {[%emt 0:02:42]} 27. Kh2 {[%emt 0:03:22]} Ra8 {[%emt 0:07:08]} 28. a4 {[%emt 0:01:43]} c5 {[%emt 0:03:10]} 29. Ne3 {[%emt 0:01:33]} d4 {[%emt 0:00:27]} 30. Nf5 {[%emt 0:00:16]} Rag8 {[%emt 0:01:04]} 31. c4 {[%emt 0:00:58]} Bd6 {[%emt 0:07:58]} 32. Rg3 {[%emt 0:02:07]} Bf8 {[%emt 0:00:32]} 33. h5 {[%emt 0:00:56]} Rg5 {[%emt 0:00:20]} 34. Rdg1 {[%emt 0:00:09]} Bxf5 {[%emt 0:01:21]} 35. gxf5 {[%emt 0:00:48]} Bh6 {[%emt 0:00:17]} 36. Kh3 {[%emt 0:00:26]} Qd8 {[%emt 0:00:13]} 37. Bd1 {[%emt 0:00:32]} Qb6 {[%emt 0:00:10]} 38. Qe2 {[%emt 0:00:33]} Qb4 {[%emt 0:00:25]} 39. R1g2 {[%emt 0:00:30]} R8g7 {[%emt 0:01:03]} 40. Rg1 {[%emt 0:00:00]} Kg8 {[%emt 0:01:21]} 41. Qc2 {[%emt 0:06:06]} Kf8 {[%emt 0:02:31]} 42. Qe2 {[%emt 0:01:18]} Ke7 {[%emt 0:00:15]} 43. Qc2 {[%emt 0:00:24]} Rxg3+ {[%emt 0:01:34]} 44. fxg3 {[%emt 0:01:11]} Be3 {[%emt 0:00:19]} 45. Rf1 {[%emt 0:01:24]} Rg5 {[%emt 0:00:13]} 46. Rh1 {[%emt 0:01:57]} Kf8 {[%emt 0:00:36]} 47. Rf1 {[%emt 0:00:31]} Kg7 {[%emt 0:00:11]} 48. Rh1 {[%emt 0:01:32]} Kh6 {[%emt 0:00:10]} 49. Rf1 {[%emt 0:00:22]} 1/2-1/2

[Event "36th Zalakaros Festival 2017"]
[Site "Zalakaros"]
[Date "2017.05.20"]
[Round "3"]
[White "Jakab, Bela"]
[Black "Beletic, Daniel"]
[Result "0-1"]
[ECO "B06"]
[WhiteElo "2216"]
[BlackElo "2315"]
[Annotator "NA"]
[PlyCount "54"]
[EventDate "2017.??.??"]
[EventType "swiss"]
[EventCountry "HUN"]
[SourceTitle "playchess.com"]
[Source "ChessBase"]
[SourceQuality "1"]
[TimeControl "40/5400+30:1800+30"]

1. e4 {[%emt 0:00:03]} g6 {[%emt 0:01:37]} 2. d4 {[%emt 0:00:06]} Bg7 {[%emt 0:00:25]} 3. Nc3 {[%emt 0:00:22]} d6 {[%emt 0:00:36]} 4. f4 {[%emt 0:00:21]} a6 {[%emt 0:00:39]} 5. Nf3 {[%emt 0:00:41]} b5 {[%emt 0:00:41]} 6. a3 {[%emt 0:02:04]} Bb7 {[%emt 0:01:25]} 7. Bd3 {[%emt 0:03:04]} Nd7 {[%emt 0:01:53]} 8. O-O {[%emt 0:01:02]} c5 {[%emt 0:02:30]} 9. Be3 {[%emt 0:02:29]} cxd4 {[%emt 0:01:06]} 10. Nxd4 {[%emt 0:00:47]} Ngf6 {[%emt 0:00:45]} 11. Kh1 {[%emt 0:06:37]} Rc8 {[%emt 0:01:10]} 12. Qe1 {[%emt 0:05:07]} O-O {[%emt 0:07:09]} 13. Nb3 {[%emt 0:08:42]} e6 {[%emt 0:13:22]} 14. Rd1 {[%emt 0:05:35]} Re8 {[%emt 0:16:19]} 15. Qg3 {[%emt 0:09:51]} Rxc3 {[%emt 0:05:03]} 16. bxc3 {[%emt 0:00:07]} Bxe4 {[%emt 0:01:24]} 17. Bd4 {[%emt 0:04:38]} Qa8 {[%emt 0:03:51]} 18. Rfe1 {[%emt 0:05:46]} Rc8 {[%emt 0:03:02]} 19. Re2 {[%emt 0:09:27]} Bd5 {[%emt 0:15:52]} 20. h3 {[%emt 0:07:29]} e5 {[%emt 0:02:39]} 21. f5 {[%emt 0:08:53]} Nh5 {[%emt 0:07:07]} 22. Qh4 {[%emt 0:05:20]} Nf4 {[%emt 0:01:34]} 23. fxg6 {[%emt 0:02:12]} hxg6 {[%emt 0:00:16]} 24. Rf2 {[%emt 0:01:40]} Nxg2 {[%emt 0:02:10]} 25. Qe7 {[%emt 0:04:42]} Ne3+ {[%emt 0:00:25]} 26. Kg1 {[%emt 0:00:05]} Nxd1 {[%emt 0:00:19]} 27. Rd2 {[%emt 0:00:55]} exd4 {[%emt 0:00:24]} 0-1